bitfinex/quotes_ETHUSD_20220123
["timestamp","ask_amount","ask_price","bid_price","bid_amount"]
[1642969001703,0.20949009,2409.8,2408.1,0.166]
[1642969001947,0.01210863,2409.4,2407.9,2.4262]
[1642969002143,0.166,2409.3,2408.8,0.0840597]
[1642969002343,0.206,2409.8,2408.8,0.0840597]
[1642969002544,0.04,2409.8,2409.0,1.3593218]
[1642969004343,0.94116927,2409.5,2409.0,1.3593218]
[1642969004548,0.94116927,2409.5,2408.8,0.0840597]
[1642969004748,0.16949009,2409.4,2408.2,0.166]
[1642969004948,0.166,2409.3,2408.2,0.166]
[1642969005345,0.16949009,2409.2,2408.2,0.166]
[1642969005597,1.01312951,2409.0,2408.5,1.21759696]
[1642969006197,0.166,2409.4,2408.5,1.21759696]
[1642969006198,0.33549009,2409.4,2408.5,1.21759696]
[1642969006397,0.16949009,2409.4,2408.5,1.21759696]
[1642969006996,0.166,2409.9,2408.6,3.18322444]
[1642969007204,0.04,2410.0,2409.7,1.51449011]
[1642969007398,0.04,2410.0,2409.7,2.41619011]
[1642969007599,0.04,2410.0,2409.7,0.6619]
[1642969007801,0.29976623,2409.6,2408.8,0.1658]
[1642969007999,0.29976623,2409.6,2408.4,2.82661271]
[1642969008000,0.29976623,2409.6,2408.4,0.0840597]
[1642969008700,0.29976623,2409.6,2409.1,1.32005403]
[1642969009101,0.29976623,2409.6,2408.4,0.0840597]
[1642969009343,0.88701843,2409.3,2408.4,0.0840597]
[1642969009945,0.92346664,2408.9,2407.9,0.17832855]
[1642969010148,0.92346664,2408.9,2408.0,1.35915821]
[1642969010347,2.28296664,2408.9,2408.0,1.35915821]
[1642969010945,2.28296664,2408.9,2408.0,0.95915821]
[1642969011146,0.16949009,2408.8,2408.1,0.0840597]
[1642969011347,1.08946664,2408.9,2408.1,0.0840597]
[1642969011554,0.16949009,2408.9,2408.1,0.0840597]
[1642969011748,0.166,2409.1,2408.1,0.0840597]
[1642969011948,1.16949009,2409.2,2408.1,0.0840597]
[1642969012256,0.16949009,2409.2,2408.1,0.0840597]
[1642969012449,0.166,2409.5,2409.1,1.19019094]
[1642969012650,0.29976623,2409.6,2409.1,1.19019094]
[1642969012847,0.29976623,2409.6,2409.2,0.04467141]
[1642969013107,0.29976623,2409.6,2408.4,0.01272081]
[1642969013301,0.29976623,2409.6,2407.6,1.07428051]
[1642969013302,0.22204299,2408.9,2407.6,1.07428051]
[1642969013494,0.22204299,2408.9,2407.5,5.86714872]
[1642969013697,0.8932292,2408.7,2407.5,5.86714872]
[1642969013900,0.8932292,2408.7,2407.5,4.62024872]
[1642969014099,1.1163292,2408.7,2407.9,1.38457288]
[1642969014904,0.2231,2408.7,2407.9,1.38457288]
[1642969015099,0.22204299,2408.9,2407.9,1.38457288]
[1642969015904,0.22204299,2408.9,2408.3,1.52623572]
[1642969017143,1.14694009,2408.7,2408.3,1.52623572]
[1642969017546,0.22204299,2408.9,2408.3,1.52623572]
[1642969018647,1.35943741,2408.9,2408.3,1.52623572]
[1642969018847,0.22204299,2408.9,2408.3,1.52623572]
[1642969019049,0.22204299,2408.9,2408.4,0.03996092]
[1642969019247,0.22204299,2408.9,2408.3,1.52623572]
[1642969019648,0.22204299,2408.9,2407.8,2.99226872]
[1642969019649,0.22204299,2408.9,2407.8,3.29226872]
[1642969019849,0.95078781,2408.7,2407.8,3.29226872]
[1642969020052,1.13813652,2408.3,2407.8,2.99226872]
[1642969020249,0.278,2408.6,2407.8,2.99226872]
[1642969020698,0.166,2408.5,2407.8,0.166]
[1642969021699,0.1661,2408.7,2408.2,1.2495885]
[1642969021904,0.22204299,2408.9,2408.2,1.2495885]
[1642969022100,0.22204299,2408.9,2408.4,0.08421681]
[1642969022500,0.29976623,2409.6,2408.7,0.0454]
[1642969022705,0.29976623,2409.6,2408.7,1.21581042]
[1642969022900,0.29976623,2409.6,2408.7,1.17041042]
[1642969023102,0.29976623,2409.6,2408.3,0.166]
[1642969023103,0.46925632,2409.6,2408.3,0.166]
[1642969023305,0.01235496,2409.3,2408.0,2.82626872]
[1642969023603,0.33549009,2409.2,2408.0,2.82626872]
[1642969024003,4.50982634,2409.2,2408.0,2.82626872]
[1642969024201,4.50982634,2409.2,2408.5,1.49193249]
[1642969024202,0.166,2409.2,2408.5,1.49193249]
[1642969024656,1.15139899,2408.7,2407.7,2.35583976]
[1642969024850,0.16949009,2409.1,2407.7,2.35583976]
[1642969024851,0.166,2409.1,2407.7,2.35583976]
[1642969025047,4.34033625,2409.2,2407.7,2.35583976]
[1642969025250,2.65634179,2409.1,2407.7,2.35583976]
[1642969025547,2.65634179,2409.1,2407.5,2.35583976]
[1642969025548,0.166,2409.0,2407.5,2.35583976]
[1642969025948,1.09623903,2408.5,2407.5,2.35583976]
[1642969026148,7.08813172,2409.0,2407.5,2.35583976]
[1642969026349,4.17433625,2409.1,2407.5,2.35583976]
[1642969026650,1.0,2408.9,2407.5,2.35583976]
[1642969026849,3.39981563,2408.8,2407.3,2.35583976]
[1642969027052,1.12565203,2407.4,2407.3,2.35583976]
[1642969027248,1.0137,2407.4,2407.3,2.35583976]
[1642969027450,0.1661,2408.1,2408.0,1.81874874]
[1642969027649,0.1661,2408.1,2407.3,2.35583976]
[1642969027650,0.8813002,2407.8,2407.3,2.35583976]
[1642969028113,1.1813002,2407.8,2406.7,5.18210848]
[1642969028301,1.15754167,2407.2,2406.7,5.18210848]
[1642969028501,1.15754167,2407.2,2407.0,1.26379583]
[1642969028703,1.15754167,2407.2,2406.7,5.18210848]
[1642969029102,1.15754167,2407.2,2406.7,5.08210848]
[1642969029504,1.45754167,2407.2,2405.7,0.00163451]
[1642969029702,0.2703,2406.7,2405.6,1.2297]
[1642969029904,0.2703,2406.7,2406.2,1.23731753]
[1642969029905,2.0102,2406.7,2406.2,1.23731753]
[1642969030102,2.0102,2406.7,2405.4,3.18634872]
[1642969030506,1.7399,2406.7,2405.4,3.18634872]
[1642969030703,1.7399,2406.7,2405.4,0.36008]
[1642969030902,1.3492,2406.7,2405.4,24.41008]
[1642969031101,1.0412,2406.7,2405.4,0.31008]
[1642969031603,1.0412,2406.7,2406.1,1.45446339]
[1642969032751,0.28857788,2407.0,2406.1,1.45446339]
[1642969032752,0.27639994,2407.0,2406.1,1.45446339]
[1642969032949,0.27639994,2407.0,2406.1,1.75446339]
[1642969033155,0.27639994,2407.0,2406.1,1.45446339]
[1642969033649,1.1140082,2406.7,2406.1,1.45446339]
[1642969033848,0.88036294,2406.3,2405.4,0.19398]
[1642969034052,0.88036294,2406.3,2405.2,24.1139222]
[1642969034053,1.77646294,2406.3,2405.2,24.1139222]
[1642969034249,0.8961,2406.3,2405.2,24.10163451]
[1642969034448,0.8961,2406.3,2405.2,24.1]
[1642969034649,0.8961,2406.3,2405.3,2.82626872]
[1642969035049,0.3197,2406.5,2405.7,1.17074645]
[1642969035254,0.1661,2406.7,2406.1,1.50334951]
[1642969035603,0.27639994,2407.0,2406.1,1.50334951]
[1642969035995,0.27639994,2407.0,2405.4,0.19398]
[1642969035996,0.1661,2406.9,2405.4,0.19398]
[1642969036195,0.1661,2406.9,2405.4,1.49398]
[1642969036394,0.1661,2406.9,2405.3,2.8391771]
[1642969036794,0.1661,2406.9,2405.4,0.19398]
[1642969036996,0.27639994,2407.0,2406.5,1.34733751]
[1642969037201,0.1661,2407.4,2406.5,1.34733751]
[1642969037400,0.8813002,2407.8,2406.5,1.34733751]
[1642969037698,0.8813002,2407.8,2406.7,0.07146047]
[1642969037898,0.8813002,2407.8,2406.9,0.04971463]
[1642969038199,0.8813002,2407.8,2407.1,1.57988993]
[1642969038408,0.8813002,2407.8,2407.2,24.29398]
[1642969038603,0.8813002,2407.8,2407.2,26.65065242]
[1642969038800,0.0001002,2407.8,2407.3,7.6]
[1642969039001,0.0001002,2407.8,2407.3,10.1946]
[1642969039441,0.0001002,2407.8,2407.3,8.5946]
[1642969039641,0.0001002,2407.8,2407.4,1.0]
[1642969040045,0.0001002,2407.8,2407.0,0.1661]
[1642969040643,0.0001002,2407.8,2407.1,0.19398]
[1642969041058,0.0001002,2407.8,2407.2,0.03892115]
[1642969041253,0.01277145,2408.8,2407.2,0.03892115]
[1642969041254,0.01277145,2408.8,2407.4,7.71334338]
[1642969041453,4.17433625,2409.1,2407.6,24.14901781]
[1642969041649,0.04,2409.2,2407.8,24.17115096]
[1642969041650,4.21433625,2409.2,2407.8,24.17115096]
[1642969041846,4.21433625,2409.2,2407.9,3.50260189]
[1642969041847,0.04,2409.2,2407.9,3.50260189]
[1642969042047,0.04,2409.2,2408.0,25.1]
[1642969042248,0.04,2409.2,2408.1,2.62071534]
[1642969042547,1.08182239,2409.1,2408.2,1.19398]
[1642969042849,0.27799871,2408.1,2407.8,0.166]
[1642969043101,0.97238989,2408.3,2407.5,1.3]
[1642969043296,3.31021435,2409.0,2407.5,1.0]
[1642969043297,3.13151418,2408.7,2407.5,1.0]
[1642969043497,3.13151418,2408.7,2407.4,0.19398]
[1642969043700,3.13151418,2408.7,2407.6,2.35665729]
[1642969044110,3.13151418,2408.7,2407.7,24.1]
[1642969044299,3.13151418,2408.9,2407.8,2.80369101]
[1642969044500,3.13151418,2409.0,2407.9,0.166]
[1642969044696,3.13151418,2409.0,2408.0,24.29398]
[1642969044899,3.17151418,2409.2,2408.0,0.19398]
[1642969045100,3.17151418,2409.2,2408.0,24.1]
[1642969045302,3.13151418,2409.1,2408.8,1.37241384]
[1642969045503,3.17151418,2409.2,2408.8,0.70479101]
[1642969046004,3.17151418,2409.2,2408.8,1.53679101]
[1642969046210,3.13151418,2409.5,2408.9,6.49398]
[1642969046406,4.17695389,2409.7,2409.0,24.1]
[1642969046407,3.13268074,2409.7,2409.0,24.1]
[1642969046605,0.04,2409.8,2408.8,1.02598]
[1642969046843,0.04,2409.8,2408.9,24.1]
[1642969047041,0.04,2409.8,2408.8,1.32598]
[1642969047442,0.04,2409.8,2408.8,1.49398]
[1642969047644,0.04,2409.8,2408.8,0.49398]
[1642969047842,0.04,2409.8,2408.9,1.35438731]
[1642969048751,0.04,2409.8,2408.9,25.45438731]
[1642969049146,0.04,2409.8,2408.9,25.40438731]
[1642969049847,0.88470747,2409.6,2408.9,1.30438731]
[1642969050692,0.04,2409.8,2408.9,1.30438731]
[1642969050900,4.33295389,2409.9,2408.9,1.30438731]
[1642969051701,0.8840766,2409.8,2409.2,0.05]
[1642969051901,4.16695389,2409.9,2409.2,0.05]
[1642969052099,0.04,2410.0,2409.2,0.05]
[1642969052100,0.04,2410.0,2409.3,24.1]
[1642969052307,0.04,2410.0,2409.4,2.74436584]
[1642969052503,0.04,2410.0,2409.4,2.75632424]
[1642969052699,0.04,2410.0,2409.5,2.74054965]
[1642969052900,0.04,2410.3,2409.5,2.74054965]
[1642969052901,0.04,2410.3,2409.7,7.65]
[1642969053100,0.04,2410.3,2409.8,1.1658]
[1642969053303,0.04,2410.3,2409.9,1.16412218]
[1642969053498,0.04,2410.3,2410.0,0.19398]
[1642969053700,0.04,2410.3,2409.9,1.16412218]
[1642969053701,0.0001,2410.3,2409.9,1.16412218]
[1642969053906,0.0001,2410.3,2410.0,0.2]
[1642969053907,0.85672928,2410.3,2410.0,0.2]
[1642969054101,1.03498203,2410.3,2410.0,0.06612165]
[1642969054342,5.9,2410.2,2408.8,1.1582]
[1642969054544,0.166,2410.1,2408.5,0.19398]
[1642969054840,0.166,2410.1,2408.9,1.50647189]
[1642969055342,0.82564207,2409.6,2409.0,0.05]
[1642969055545,0.166,2410.1,2409.0,0.05]
[1642969056343,0.166,2410.1,2408.9,25.60647189]
[1642969056549,0.166,2410.1,2408.5,0.19398]
[1642969056746,0.01282104,2409.5,2408.1,1.0]
[1642969056945,0.166,2409.4,2408.1,1.0]
[1642969057145,0.166,2409.4,2407.9,0.19398]
[1642969057344,0.166,2409.4,2407.6,0.35998]
[1642969057544,0.166,2409.4,2408.3,1.37297666]
[1642969058204,0.166,2409.4,2408.3,25.66695666]
[1642969058405,4.17419834,2409.7,2408.3,25.66695666]
[1642969058604,4.34019834,2409.9,2408.7,1.33607733]
[1642969058807,4.34019834,2409.9,2408.1,1.35998]
[1642969058808,1.12768248,2408.8,2408.1,1.35998]
[1642969059008,1.12768248,2408.8,2407.1,9.51975296]
[1642969059009,0.22858038,2408.6,2408.4,1.0]
[1642969059406,0.22858038,2408.6,2407.2,2.38377414]
[1642969059705,0.22858038,2408.6,2407.7,1.30770075]
[1642969059706,0.2409589,2408.6,2407.7,1.30770075]
[1642969060204,0.2409589,2408.6,2407.2,2.38377414]
[1642969060402,0.1661,2408.5,2407.2,2.38377414]
[1642969060603,0.1661,2408.5,2407.0,4.93067414]
[1642969060806,0.1661,2408.5,2407.0,3.14987414]
[1642969061003,0.1661,2408.5,2407.2,0.04284481]
[1642969061408,0.1661,2408.5,2407.7,1.41058544]
[1642969061607,0.1661,2408.5,2407.0,0.36008]
[1642969062042,0.1661,2408.5,2407.0,24.46008]
[1642969062243,0.1661,2408.5,2407.5,0.05]
[1642969062445,1.20545,2408.5,2407.5,0.05]
[1642969062645,1.20545,2408.5,2406.5,0.01249131]
[1642969062646,5.67964834,2408.5,2406.5,0.01249131]
[1642969062849,5.67964834,2408.5,2406.5,0.20647131]
[1642969062850,6.32834834,2408.5,2406.5,0.20647131]
[1642969063147,6.32834834,2408.5,2406.3,0.00163451]
[1642969063148,1.3,2408.4,2406.3,0.19561451]
[1642969063355,0.1661,2408.3,2406.3,0.19398]
[1642969063549,0.1661,2408.3,2407.3,0.05]
[1642969063550,0.99266922,2407.8,2407.3,0.05]
[1642969063755,0.1661,2407.7,2407.3,0.05]
[1642969063949,0.1661,2407.7,2406.3,0.00163451]
[1642969064154,0.1661,2407.7,2406.3,2.8302542]
[1642969064552,0.1661,2407.7,2406.3,2.82861969]
[1642969064954,1.12071668,2407.3,2406.8,0.05]
[1642969065152,0.1661,2407.2,2406.8,0.05]
[1642969065606,0.01298447,2408.0,2406.8,0.05]
[1642969065607,0.17908447,2408.0,2406.8,0.05]
[1642969065805,0.22858038,2408.6,2406.8,0.24398]
[1642969065806,0.1661,2408.2,2406.8,0.24398]
[1642969066003,2.80385698,2408.4,2406.8,24.34398]
[1642969066202,0.13819997,2408.3,2407.2,1.51713325]
[1642969066406,0.95667437,2408.0,2407.2,1.51713325]
[1642969067404,0.1661,2408.2,2407.9,1.08520953]
[1642969067607,0.01262031,2408.7,2407.9,1.08520953]
[1642969067608,0.53288035,2408.6,2407.9,1.08520953]
[1642969067805,0.36678035,2408.6,2407.2,0.0385521]
[1642969068005,0.36678035,2408.6,2407.3,0.19398]
[1642969068813,0.36678035,2408.6,2408.0,1.10759579]
[1642969070651,0.22858038,2408.6,2408.0,1.10759579]
[1642969071051,0.22858038,2408.6,2408.1,0.19398]
[1642969071453,4.17648787,2409.4,2408.2,6.05]
[1642969071659,4.17648787,2409.4,2408.8,1.11850063]
[1642969071957,4.17648787,2409.5,2408.8,1.87710063]
[1642969072359,4.17648787,2409.7,2408.8,1.87710063]
[1642969072659,5.22060984,2410.0,2408.8,0.7586]
[1642969072660,4.17648787,2409.6,2408.8,0.7586]
[1642969072862,6.91219582,2409.5,2408.0,4.14998]
[1642969073104,6.91219582,2409.5,2407.6,26.6455]
[1642969073105,1.05397795,2408.9,2407.6,26.6455]
[1642969073308,0.6883131,2408.6,2407.7,24.1]
[1642969073511,1.0204639,2408.5,2407.7,1.0]
[1642969073911,1.0204639,2408.5,2407.7,1.09265232]
[1642969074311,1.0204639,2408.5,2407.8,2.35676371]
[1642969074510,0.6883131,2408.6,2407.8,2.35676371]
[1642969075614,1.11940651,2408.4,2407.8,2.35676371]
[1642969075814,0.6883131,2408.6,2407.8,2.35676371]
[1642969076853,1.82916641,2408.6,2407.7,1.09265232]
[1642969077260,1.82916641,2408.6,2407.5,24.1]
[1642969077261,2.55159885,2408.5,2407.5,24.1]
[1642969077460,0.6919,2408.5,2407.5,24.1]
[1642969077662,0.6919,2408.5,2407.2,0.166]
[1642969077663,4.17648787,2408.3,2407.2,0.166]
[1642969077859,0.1661,2408.2,2407.2,0.166]
[1642969078058,0.01209251,2407.9,2407.3,2.35720353]
[1642969078257,0.1661,2407.8,2407.3,2.35720353]
[1642969078457,0.91757552,2407.7,2407.3,2.35720353]
[1642969078658,1.2028,2407.8,2407.3,2.35720353]
[1642969079458,1.2028,2407.8,2407.2,0.166]
[1642969079659,0.82225783,2407.6,2406.8,0.05]
[1642969080260,2.66339185,2407.5,2406.8,0.05]
[1642969080463,2.66339185,2407.5,2406.5,7.43]
[1642969080464,0.1661,2407.4,2406.5,7.43]
[1642969080705,0.1661,2407.4,2405.9,2.99537015]
[1642969080706,1.47306359,2407.3,2405.9,2.99537015]
[1642969080909,0.6671,2407.2,2405.9,2.99537015]
[1642969081104,5.85240587,2407.2,2405.9,2.99537015]
[1642969081303,0.6671,2407.2,2405.9,2.99537015]
[1642969081513,0.1661,2407.2,2406.0,0.19398]
[1642969081711,4.18530587,2407.6,2406.1,24.1]
[1642969081912,4.18530587,2407.8,2407.5,1.34204893]
[1642969082111,4.18530587,2408.1,2407.5,1.34204893]
[1642969082308,4.18530587,2408.2,2407.5,1.34204893]
[1642969082514,5.3461178,2408.2,2407.6,25.0]
[1642969082708,4.18530587,2408.0,2407.6,25.0]
[1642969082908,4.18530587,2407.9,2407.6,25.0]
[1642969083308,4.18530587,2407.9,2407.6,17.4585184]
[1642969083507,1.05911548,2407.7,2407.6,17.4585184]
[1642969083711,4.19164308,2407.7,2407.6,17.4585184]
[1642969083926,5.38670984,2408.1,2407.6,17.4585184]
[1642969083927,4.19164308,2407.8,2407.6,17.4585184]
[1642969084352,4.19164308,2407.9,2407.6,17.4585184]
[1642969084555,4.19164308,2408.2,2407.7,1.36111437]
[1642969084754,4.19164308,2408.4,2408.1,1.13739099]
[1642969085160,0.82651307,2408.6,2408.1,2.31079099]
[1642969085161,4.19164308,2408.5,2408.1,2.31079099]
[1642969085354,0.6883131,2408.6,2408.1,2.31079099]
[1642969085559,0.6883131,2408.6,2408.2,0.19398]
[1642969085961,5.22060984,2409.5,2408.3,30.0]
[1642969086163,5.22060984,2409.5,2408.7,1.17868538]
[1642969086360,5.22060984,2409.5,2408.7,2.19468538]
[1642969086560,0.84345548,2409.0,2408.7,1.016]
[1642969086763,0.01227551,2409.7,2407.7,1.19398]
[1642969086764,0.90447917,2408.6,2407.7,1.19398]
[1642969086966,0.01296906,2409.1,2407.6,17.4585184]
[1642969086967,0.01220665,2408.5,2407.6,17.4585184]
[1642969087367,0.83420665,2408.5,2407.6,17.4585184]
[1642969087566,1.48149367,2407.9,2407.6,16.3304184]
[1642969087869,0.1661,2407.8,2407.6,16.3304184]
[1642969088104,6.7,2407.7,2405.9,7.43]
[1642969088307,0.01206436,2407.2,2406.0,2.2206531]
[1642969088509,0.01206436,2407.2,2406.9,0.05]
[1642969088908,0.1661,2407.5,2406.9,0.05]
[1642969089108,0.1661,2407.7,2406.9,0.05]
[1642969089314,1.49469824,2407.9,2406.9,0.05]
[1642969089514,2.49469824,2407.9,2406.9,0.05]
[1642969089714,0.90839399,2407.6,2406.9,0.05]
[1642969090716,1.49469824,2407.9,2406.9,0.05]
[1642969090916,0.801,2407.8,2406.1,7.43]
[1642969091125,1.05223586,2407.3,2406.1,7.43]
[1642969091316,0.1661,2407.2,2406.1,7.43]
[1642969092057,0.1661,2407.2,2406.5,0.05]
[1642969092058,1.05959654,2407.0,2406.5,0.05]
[1642969092255,0.1661,2407.2,2406.5,0.05]
[1642969092455,0.1661,2407.2,2406.1,1.15635949]
[1642969092657,1.4661,2407.2,2406.1,1.15635949]
[1642969092856,0.4661,2407.2,2406.1,1.15635949]
[1642969093059,1.4661,2407.2,2406.1,1.15635949]
[1642969093260,0.1661,2407.2,2406.5,1.3867199]
[1642969093461,6.44410054,2407.7,2407.0,0.1]
[1642969093667,0.1661,2407.7,2407.0,0.1]
[1642969093958,0.1661,2407.8,2407.0,0.1]
[1642969094160,0.27639994,2407.9,2407.0,0.1]
[1642969094360,5.23828054,2408.3,2407.8,1.34076569]
[1642969094562,0.1661,2408.7,2407.8,1.34076569]
[1642969094761,0.166,2408.8,2407.8,1.34076569]
[1642969094958,0.166,2408.9,2407.8,1.34076569]
[1642969095356,5.40428054,2408.9,2407.8,1.34076569]
[1642969095615,5.23828054,2408.9,2408.3,1.45299903]
[1642969095808,5.23828054,2408.9,2408.3,0.9642307]
[1642969096005,5.23828054,2408.9,2407.6,3.6884]
[1642969096205,5.23828054,2408.9,2407.6,4.6884]
[1642969097004,0.166,2409.0,2407.6,4.6884]
[1642969097005,5.40428054,2409.0,2408.3,1.25315773]
[1642969097407,43.57289787,2409.4,2408.3,1.25315773]
[1642969097408,5.23828054,2408.9,2408.3,1.25315773]
[1642969097611,33.47109071,2409.4,2408.3,2.04713773]
[1642969097612,5.23828054,2409.2,2408.3,2.04713773]
[1642969097807,0.01238103,2409.4,2408.3,3.12913773]
[1642969098010,0.01238103,2409.4,2408.3,3.29513773]
[1642969098216,0.01238103,2409.4,2408.4,1.0]
[1642969098412,5.23828054,2409.3,2408.4,1.0]
[1642969098609,5.23828054,2409.3,2408.3,1.27598]
[1642969098811,5.23828054,2409.3,2408.0,0.447]
[1642969098812,5.23828054,2409.2,2408.0,0.166]
[1642969099013,5.23828054,2409.2,2407.6,3.6884]
[1642969099014,5.25114472,2408.9,2407.6,3.6884]
[1642969099448,6.40428054,2408.8,2407.2,2.25893408]
[1642969099649,1.13901876,2408.3,2407.6,1.15610148]
[1642969099855,1.16875445,2407.9,2407.1,3.6248]
[1642969100058,0.01226607,2408.3,2407.0,0.1]
[1642969100262,0.01238631,2407.6,2406.5,0.1661]
[1642969100459,0.1661,2407.5,2406.5,0.1661]
[1642969101254,1.05803653,2407.1,2406.5,0.2661]
[1642969101854,0.1661,2407.5,2406.5,0.1661]
[1642969102257,0.13819997,2407.4,2406.5,0.1661]
[1642969102457,0.1661,2407.3,2406.5,0.1661]
[1642969102756,0.1661,2407.3,2405.9,6.12723408]
[1642969102956,0.1661,2407.3,2406.8,0.1]
[1642969103714,0.1661,2407.3,2406.7,1.43416927]
[1642969103911,0.1661,2407.3,2406.0,1.0]
[1642969104114,0.1661,2407.3,2405.9,3.8683]
[1642969104314,0.1661,2407.3,2405.8,7.43]
[1642969104315,2.04461,2407.3,2405.8,7.43]
[1642969104513,0.501,2407.2,2405.8,7.43]
[1642969104713,0.1661,2407.1,2406.5,0.1]
[1642969105215,0.1661,2407.1,2406.8,1.18083452]
[1642969105417,0.1661,2407.5,2406.8,1.13083452]
[1642969105614,5.23828054,2408.0,2406.9,0.3]
[1642969105814,5.23828054,2408.1,2406.8,1.13083452]
[1642969106018,0.1661,2408.0,2406.8,1.43083452]
[1642969106221,0.84475134,2408.0,2407.3,1.28004698]
[1642969106417,0.1661,2408.2,2407.3,1.28004698]
[1642969107250,1.1661,2408.2,2407.3,1.28004698]
[1642969107652,0.1661,2408.2,2407.3,1.28004698]
[1642969107856,51.98253001,2408.4,2407.4,0.19398]
[1642969107857,0.13819997,2408.4,2407.4,0.19398]
[1642969108057,7.48537406,2409.0,2407.4,0.19398]
[1642969108058,5.40438054,2408.9,2407.4,1.23318431]
[1642969108254,5.23828054,2408.8,2407.4,3.49211839]
[1642969108455,5.23828054,2408.8,2407.5,24.1]
[1642969108661,0.89549717,2408.5,2407.9,1.14729999]
[1642969108859,1.00909028,2408.1,2407.3,1.2474]
[1642969109059,0.01285607,2407.8,2407.0,1.6]
[1642969109264,1.03510775,2407.2,2406.6,1.0]
[1642969109460,1.03510775,2407.2,2406.4,3.6321]
[1642969109758,1.03510775,2407.2,2406.0,0.00163451]
[1642969109956,1.03510775,2407.2,2406.3,1.53289099]
[1642969110597,0.1661,2407.5,2406.1,0.1]
[1642969110799,1.6671,2407.5,2406.1,0.1]
[1642969111000,2.97991724,2407.4,2406.2,7.43]
[1642969111209,0.1661,2407.3,2406.2,7.43]
[1642969111399,0.1661,2407.3,2406.2,7.73]
[1642969111600,0.1661,2407.3,2406.2,8.6204818]
[1642969112700,0.1661,2407.3,2406.2,8.9204818]
[1642969113001,1.14349694,2407.3,2406.3,1.0]
[1642969113202,0.97739694,2407.3,2406.3,1.0]
[1642969115948,0.97739694,2407.3,2406.2,33.0204818]
[1642969116257,0.1661,2407.5,2406.4,24.1]
[1642969116453,5.24875358,2408.1,2406.5,2.45291408]
[1642969116649,5.24875358,2408.2,2406.6,24.601]
[1642969116851,5.24875358,2408.3,2407.7,1.34309185]
[1642969117049,5.38695355,2408.4,2407.7,1.29309185]
[1642969117449,0.84380586,2408.3,2407.7,1.29309185]
[1642969118811,5.38695355,2408.4,2408.1,1.46050678]
[1642969119012,5.24875358,2408.5,2408.1,2.25193605]
[1642969119210,0.0120854,2408.7,2408.1,2.55193605]
[1642969119211,5.24875358,2408.7,2408.1,2.55193605]
[1642969119505,5.24875358,2408.8,2408.1,3.37183605]
[1642969119706,5.24875358,2409.0,2408.2,1.0]
[1642969119905,5.24875358,2409.0,2408.6,1.12136371]
[1642969120106,5.24875358,2409.0,2408.6,1.1915]
[1642969120107,1.07720868,2408.8,2408.6,1.1915]
[1642969120313,0.68706858,2408.4,2407.7,0.166]
[1642969120508,0.68706858,2408.4,2407.3,1.0]
[1642969120705,0.68706858,2408.4,2407.3,1.79398]
[1642969121107,0.68706858,2408.4,2408.1,1.13337797]
[1642969121513,0.68706858,2408.4,2408.1,1.73337797]
[1642969121708,0.68706858,2408.4,2408.1,2.53107797]
[1642969122151,0.68706858,2408.4,2408.2,1.0]
[1642969122354,0.68706858,2408.4,2408.3,6.9]
[1642969122552,0.68706858,2408.4,2408.3,8.5]
[1642969125056,0.68706858,2408.4,2408.3,8.69398]
[1642969125614,0.04,2409.7,2408.5,7.68328811]
[1642969125615,5.24994341,2409.3,2408.5,7.68328811]
[1642969125812,7.0383381,2409.7,2408.7,7.65]
[1642969125813,0.04,2409.7,2408.7,7.65]
[1642969126008,7.9983381,2410.0,2408.7,7.65]
[1642969126009,1.0,2410.0,2409.0,7.65]
[1642969126209,1.0,2410.0,2409.1,24.83381043]
[1642969126414,1.0,2410.0,2409.1,24.82737104]
[1642969126621,1.0,2410.0,2409.3,24.1]
[1642969126815,0.04,2410.4,2410.3,1.371367]
[1642969127015,0.04,2410.4,2410.3,2.627567]
[1642969127312,0.04,2410.4,2410.3,2.327567]
[1642969127512,0.04,2410.4,2410.3,0.85293922]
[1642969128114,0.04,2410.4,2410.3,2.10769593]
[1642969128315,0.44181465,2410.4,2410.3,2.10769593]
[1642969128515,0.44181465,2410.4,2410.3,2.05769593]
[1642969129120,1.43811316,2410.4,2409.6,1.1658]
[1642969129380,1.09741371,2410.0,2409.5,3.8794]
[1642969129564,0.40181465,2409.9,2408.7,0.1658]
[1642969129760,0.40181465,2409.9,2408.6,1.19398]
[1642969130159,0.40181465,2409.9,2408.6,25.29398]
[1642969130659,0.40181465,2409.9,2409.1,1.48810441]
[1642969130859,0.40181465,2409.9,2409.1,1.78810441]
[1642969131261,0.33659428,2409.8,2409.1,1.78810441]
[1642969131468,0.33659428,2409.7,2409.1,25.88810441]
[1642969131667,0.33659428,2409.7,2409.3,24.1]
[1642969131865,0.166,2410.3,2409.5,24.1]
[1642969131866,0.33659428,2410.2,2409.5,24.1]
[1642969132067,0.33659428,2410.2,2409.6,1.19398]
[1642969132264,0.33659428,2410.2,2409.6,1.49398]
[1642969132464,0.166,2410.3,2409.6,0.49398]
[1642969132664,0.04,2410.4,2409.9,1.25599903]
[1642969132863,0.92868658,2410.2,2409.2,3.7969]
[1642969133309,0.92868658,2410.2,2409.0,0.19398]
[1642969133913,0.92868658,2410.2,2409.6,1.10722378]
[1642969134111,0.1658,2410.3,2409.6,1.10722378]
[1642969134713,0.1658,2410.3,2410.0,1.3011124]
[1642969134916,0.04,2410.4,2410.0,1.6011124]
[1642969135115,0.04,2410.4,2410.1,24.1]
[1642969135313,0.04,2410.4,2410.1,24.2658]
[1642969135520,0.04,2410.4,2410.3,6.49398]
[1642969135714,0.04,2410.4,2410.3,6.65978]
[1642969135914,0.04,2410.7,2410.4,1.38054266]
[1642969136115,0.04,2410.7,2410.4,2.87452266]
[1642969136514,0.04,2410.7,2410.4,25.97452266]
[1642969136716,0.04,2410.7,2410.5,1.0]
[1642969136953,0.04,2410.7,2410.5,1.3]
[1642969137948,0.04,2410.7,2410.4,1.57452266]
[1642969138152,0.04,2410.7,2410.4,1.38054266]
[1642969139561,0.04,2410.7,2410.4,1.0763051]
[1642969139756,0.04,2410.7,2410.1,1.19398]
[1642969139956,0.04,2410.7,2409.9,1.19398]